[Event "FIDE WTC Prel-A 2022"]
[Site "Jerusalem"]
[Date "2022.11.20"]
[Round "1.6"]
[White "Shevchenko, Kirill"]
[Black "Moussard, Jules"]
[Result "1-0"]
[ECO "A29"]
[WhiteElo "2649"]
[BlackElo "2676"]
[Annotator "TA"]
[PlyCount "101"]
[EventDate "2022.11.20"]
[EventType "team-tourn"]
[EventCountry "ISR"]
[SourceTitle "playchess.com"]
[Source "ChessBase"]
[SourceQuality "1"]
[WhiteTeam "Ukraine"]
[BlackTeam "France"]
[WhiteTeamCountry "UKR"]
[BlackTeamCountry "FRA"]
[TimeControl "2700+10"]

{[%evp 15,101,3,4,8,16,6,8,6,31,29,34,31,40,44,50,22,23,18,12,8,45,31,48,26,25,16,21,24,33,30,38,42,46,43,43,39,88,89,89,78,94,68,89,66,75,73,69,58,106,106,202,106,243,239,297,297,297,184,178,170,170,170,242,222,6628,6668,6420,6347,6224,6185,4116,3962,1254,2605,3393,2593,1326,9125,29968,29969,29968,29967,29980,29981,29981,29982,29982,29982]} 1. c4 {[%emt 0:00:04]} e5 {[%emt 0:00:10]} 2. Nc3 {[%emt 0:00:12]} Nf6 {[%emt 0:00:02]} 3. Nf3 {[%emt 0:00:04]} Nc6 {[%emt 0:00:03]} 4. g3 {[%emt 0:00:02]} d5 {[%emt 0:00:24]} 5. cxd5 {[%emt 0:00:05]} Nxd5 {[%emt 0:00:03]} 6. Bg2 {[%emt 0:00:02]} Bc5 {[%emt 0:00:37]} 7. O-O {[%emt 0:02:01]} O-O {[%emt 0:00:06]} 8. d3 {[%emt 0:00:08]} h6 {[%emt 0:00:43] 8...Bb6 is not played anymore.} 9. Nxd5 {[%emt 0:07:47] A29: English Opening: Four Knights Variation with 4 g3.} Qxd5 {[%emt 0:00:03]} 10. Bd2 {[%emt 0:02:08]} Qd6 {[%emt 0:02:32]} 11. Bc3 {[%emt 0:03:23][%cal Of3e5] [#] The position is equal.} Bg4 $146 {[%emt 0:09:54]} ({Predecessor:} 11... Rd8 12. Nd2 Be6 13. Qa4 Nd4 14. Bxd4 Qxd4 15. Qc2 Bd6 16. Nc4 c6 17. Nxd6 Rxd6 {0-1 (49) Wang,Y (2440)-Sunilduth Lyna,N (2616) Changsha 2019}) 12. h3 {[%emt 0:02:05]} (12. Nxe5 {feels hotter.} Nxe5 13. d4 Nc6 14. dxc5 Qxc5 15. Re1) 12... Bxf3 {[%emt 0:14:48]} 13. Bxf3 {[%emt 0:00:02]} Rab8 {[%emt 0:03:25][%cal Oe5e4]} 14. e3 {[%emt 0:04:15]} Rfd8 {[%emt 0:04:25]} 15. Be4 {[%emt 0:04:12] A strong pair of Bishops.} Bb4 {[%emt 0:01:09]} 16. Qb3 {[%emt 0:03:12]} Bxc3 {[%emt 0:00:27]} 17. bxc3 {[%emt 0:00:12]} Ne7 {[%emt 0:02:39]} 18. Rfd1 {[%emt 0:03:11]} c5 {[%emt 0:01:19]} 19. a4 {[%emt 0:00:06]} ({Don't blunder} 19. Bxb7 $2 Rd7 20. Rab1 Rdxb7 21. Qxb7 Rxb7 22. Rxb7 Nd5 $19) (19. d4 $5) 19... b6 {[%emt 0:00:44]} 20. Qc4 {[%emt 0:02:05]} Nd5 {[%emt 0:02:07]} 21. Rab1 {[%emt 0:00:59]} Nc7 {[%emt 0:00:06]} 22. h4 {[%emt 0:00:35]} a6 {[%emt 0:01:39]} 23. d4 {[%emt 0:04:36]} cxd4 {[%emt 0:00:05]} 24. cxd4 {[%emt 0:00:00]} b5 {[%emt 0:00:06]} 25. axb5 {[%emt 0:02:28]} Nxb5 {[%emt 0:00:37]} (25... axb5 $14 26. Qc2 Ne8) 26. dxe5 $16 {[%emt 0:00:56] White is more active.} Qxe5 {[%emt 0:00:02]} 27. Bd5 {[%emt 0:01:58]} Qf6 {[%emt 0:00:21]} 28. Rbc1 {[%emt 0:00:27]} h5 {[%emt 0:00:33]} 29. e4 {[%emt 0:00:36][%cal Oe4e5]} g6 {[%emt 0:00:29]} 30. Kg2 {[%emt 0:00:11]} Kg7 {[%emt 0:00:03]} 31. Rd3 {[%emt 0:00:01] Rf3 is the strong threat.} Nd6 {[%emt 0:00:21] [#]} (31... Qe5 $14) 32. Qa4 $1 {[%emt 0:00:10] Hoping for Rc7.} Qe5 {[%emt 0:00:16]} (32... Rb2 $2 33. Rf3 Qe5 34. Rc7 $18 (34. Qxa6 Rd7 $16)) (32... Rbc8 $16 33. Rxc8 Rxc8) 33. Rf3 {[%emt 0:00:07]} (33. Rc7 $18) 33... Rf8 {[%emt 0:00:09] Loses the game.} (33... Rdc8 $16 34. Rxc8 Rxc8) 34. Rc7 $18 {[%emt 0:00:13]} ({Not} 34. Qxa6 Nxe4 35. Ba2 Nd6 $11) 34... Rbc8 {[%emt 0:00:04]} 35. Ra7 {[%emt 0:00:05]} Rce8 {[%emt 0:00:10]} 36. Qxa6 {[%emt 0:00:16]} Re7 {[%emt 0:00:08]} 37. Rxe7 {[%emt 0:00:14]} Qxe7 {[%emt 0:00:01]} 38. Qa1+ {[%emt 0:00:01]} Kh7 {[%emt 0:00:07]} (38... f6 {was called for.} 39. Rb3 Rh8) 39. Qf6 {[%emt 0:00:32]} Nc8 {[%emt 0:00:30]} (39... Re8 40. Bxf7 Qxf6 41. Rxf6 Nxf7) 40. Qxe7 {[%emt 0:00:11]} Nxe7 {[%emt 0:00:02]} 41. Rxf7+ {[%emt 0:00:01]} Rxf7 {[%emt 0:00:00]} 42. Bxf7 {[%emt 0:00:01][%mdl 4096] Endgame KB-KN} Kg7 {[%emt 0:00:02]} 43. Bc4 {[%emt 0:00:08]} Nc6 {[%emt 0:00:14]} 44. f4 {[%emt 0:00:03]} (44. Bd5 $142 Ne5 45. f4) 44... Nd4 {[%emt 0:00:04]} 45. Kf2 {[%emt 0:00:02] [#] Black must now prevent Ke3.} Kf6 {[%emt 0:00:04]} 46. Ke3 {[%emt 0:00:06]} (46. Bd5 $142 Kg7 47. Ke3) 46... Nc2+ {[%emt 0:00:07]} 47. Kd3 {[%emt 0:00:06] White mates.} Nb4+ {[%emt 0:00:03]} 48. Kd4 {[%emt 0:00:02]} Nc2+ {[%emt 0:00:14]} 49. Kc3 {[%emt 0:00:15]} Ne3 {[%emt 0:00:34]} 50. Be2 {[%emt 0:00:03]} Ng2 {[%emt 0:00:27]} 51. Kd2 {[%emt 0:00:03] Weighted Error Value: White=0.14 (very precise) /Black=0.37} 1-0

[Event "FIDE WTC Prel-A 2022"]
[Site "Jerusalem"]
[Date "2022.11.20"]
[Round "1.7"]
[White "Fressinet, Laurent"]
[Black "Volokitin, Andrei"]
[Result "1-0"]
[ECO "D38"]
[WhiteElo "2622"]
[BlackElo "2663"]
[Annotator "TA"]
[PlyCount "125"]
[EventDate "2022.11.20"]
[EventType "team-tourn"]
[EventCountry "ISR"]
[SourceTitle "playchess.com"]
[Source "ChessBase"]
[SourceQuality "1"]
[WhiteTeam "France"]
[BlackTeam "Ukraine"]
[WhiteTeamCountry "FRA"]
[BlackTeamCountry "UKR"]
[TimeControl "2700+10"]

{[%evp 12,125,25,16,16,13,4,6,15,11,33,11,20,13,79,69,81,73,102,95,106,116,118,87,121,125,120,104,117,131,138,114,200,172,239,238,218,237,236,212,231,226,247,232,224,239,272,278,443,202,214,205,380,189,182,182,182,182,182,182,162,133,99,63,103,104,143,143,143,104,109,96,165,58,86,54,73,41,45,43,83,83,116,119,190,37,72,85,216,216,220,226,202,160,235,204,702,697,1147,910,12834,306,12834,7603,12837,12838,12835,12834,5035,1974,12846,12846,12847,12847,12848,12847]} 1. d4 {[%emt 0:00:05]} Nf6 {[%emt 0:00:02]} 2. c4 {[%emt 0:00:06]} e6 {[%emt 0:00:08]} 3. Nf3 {[%emt 0:00:08]} d5 {[%emt 0:00:05]} 4. Nc3 {[%emt 0:00:02]} Bb4 {[%emt 0:00:03]} 5. cxd5 {[%emt 0:00:17]} exd5 {[%emt 0:00:02]} 6. Bg5 {[%emt 0:00:07]} h6 {[%emt 0:00:05]} 7. Bh4 {[%emt 0:00:08]} O-O {[%emt 0:00:06] D38: Queen's Gambit Declined: Ragozin Defence (4 Nf3 Bb4).} 8. e3 {[%emt 0:00:13]} Bf5 {[%emt 0:00:04]} 9. Be2 {[%emt 0:00:16]} Nbd7 {[%emt 0:00:11] The position is equal.} 10. Qb3 {[%emt 0:00:06]} Qe7 {[%emt 0:00:08]} 11. O-O {[%emt 0:01:35]} c6 {[%emt 0:02:57]} 12. a3 {[%emt 0:00:07] [#]} Bd6 $146 {[%emt 0:21:15]} (12... Bxc3 $11 13. bxc3 b5) ({Predecessor:} 12... Bxc3 13. Bxf6 Nxf6 14. bxc3 b5 15. a4 a6 16. Qa3 Qb7 17. Ra2 Rfc8 18. Ne5 Rab8 {½-½ (43) Harikrishna,P (2732)-Wojtaszek,R (2705) Wijk aan Zee 2021}) 13. Qxb7 $16 {[%emt 0:03:33]} Rab8 {[%emt 0:00:16]} 14. Qxc6 {[%emt 0:03:44]} g5 {[%emt 0:01:13]} 15. Bg3 {[%emt 0:00:17]} (15. Nxd5 $6 Nxd5 16. Qxd5 Be6 17. Bxg5 f6 $11) 15... Bxg3 {[%emt 0:00:08]} 16. hxg3 {[%emt 0:00:02]} Rxb2 {[%emt 0:00:10]} 17. Rfe1 {[%emt 0:04:26]} Nb6 {[%emt 0:02:27] Strongly threatening ...Rc8.} 18. Qc5 {[%emt 0:04:59]} Qe6 {[%emt 0:00:19]} 19. Ne5 {[%emt 0:07:14]} Rc8 {[%emt 0:07:50]} 20. Qa5 {[%emt 0:00:04]} Ne4 {[%emt 0:00:12]} 21. Rac1 {[%emt 0:04:24] Threatens to win with Nxe4.} Nd6 {[%emt 0:07:59]} (21... Rxc3 $16 22. Rxc3 Nxc3 23. Qxc3 Rc2) 22. Bf1 {[%emt 0:10:44]} (22. Qxa7 Ra8 23. Qc7 Rc8 $11) 22... f6 {[%emt 0:01:50]} (22... Kg7 $142 23. Na4 (23. Qxa7 Ra8 $11) 23... Nxa4) 23. Nd3 $18 {[%emt 0:01:54]} Bxd3 {[%emt 0:00:47]} 24. Bxd3 {[%emt 0:00:02]} Rb3 {[%emt 0:00:30]} 25. Bf1 {[%emt 0:01:43]} (25. Qxa7 Qf7 26. Qxf7+ Kxf7 27. Nxd5 Rxc1 28. Rxc1 Nxd5 $17) 25... Qf7 {[%emt 0:00:20]} 26. Nb5 $1 {[%emt 0:01:12]} Ndc4 {[%emt 0:00:09]} 27. Qa6 {[%emt 0:00:35]} Qd7 {[%emt 0:00:03]} 28. a4 {[%emt 0:00:10]} (28. Nxa7 $2 Ra8 29. Rb1 (29. Bxc4 $2 dxc4 30. Qa5 Rxa7 $19) 29... Rxa3 $19) 28... Rb4 {[%emt 0:00:17]} 29. Qxa7 {[%emt 0:00:20]} Qd8 {[%emt 0:00:10]} (29... Qf7 {is a better defense.} 30. Qxf7+ Kxf7) 30. a5 {[%emt 0:01:05]} (30. Bd3 $142 {Black must now prevent Qh7+.} Qd7 31. Bxc4 Qxa7 32. Bxd5+ Kg7 33. Nxa7 Rxc1 34. Rxc1 Nxd5 35. a5) 30... Rxb5 {[%emt 0:00:11]} 31. axb6 {[%emt 0:00:01]} Qxb6 $2 {[%emt 0:00:07]} (31... Rxb6 32. Bd3 Rc7) 32. Qxb6 {[%emt 0:00:30]} (32. Qd7 $142 Qb7 33. Qe6+ Kg7 34. Bd3) 32... Rxb6 {[%emt 0:00:01]} 33. e4 {[%emt 0:00:13]} Nd6 {[%emt 0:00:16]} 34. Rxc8+ {[%emt 0:00:06]} Nxc8 {[%emt 0:00:01]} 35. exd5 {[%emt 0:00:02][%mdl 4096] Endgame Hoping for Re8+. KRB-KRN} Kf7 {[%emt 0:00:05] Against Re8} 36. Rc1 {[%emt 0:00:05]} Ne7 {[%emt 0:00:09]} 37. Rc7 {[%emt 0:00:07]} Rd6 {[%emt 0:00:12]} 38. Bc4 {[%emt 0:00:18]} Kf8 {[%emt 0:00:14]} 39. Rc5 {[%emt 0:00:12]} Nf5 {[%emt 0:00:05]} 40. Rc8+ {[%emt 0:00:07]} Ke7 {[%emt 0:00:27]} 41. Rh8 {[%emt 0:00:19]} Kf7 {[%emt 0:00:07]} (41... Rb6 $16) 42. Bd3 {[%emt 0:00:18]} (42. Kf1 $18) 42... Kg7 {[%emt 0:00:07]} 43. Ra8 {[%emt 0:00:12]} (43. Bxf5 Kxh8 44. Be6 Ra6 $19) 43... Nxd4 {[%emt 0:00:11]} 44. Ra7+ {[%emt 0:00:01]} Kf8 {[%emt 0:00:05]} 45. Bc4 {[%emt 0:00:02]} Nf5 {[%emt 0:00:09]} 46. Kf1 {[%emt 0:00:19] White is more active.} Rb6 {[%emt 0:00:25] [#]} 47. Bd3 $1 {[%emt 0:00:03] Against Rb1+} Ne7 {[%emt 0:00:04] [#]} (47... Nd4 $16 48. f3 Rd6) 48. Ra5 $2 {[%emt 0:00:08]} ({White has to play} 48. Ra8+ $1 $18 Kf7 49. Rd8) 48... Rd6 {[%emt 0:00:08]} 49. Bc4 {[%emt 0:00:02]} f5 {[%emt 0:00:05] A mistake that costs the game.} (49... Ng6 $16 {was called for.}) 50. Ke2 {[%emt 0:00:12]} Kf7 {[%emt 0:00:01]} 51. Ke3 {[%emt 0:00:17]} Kf6 {[%emt 0:00:02]} 52. f4 {[%emt 0:00:01]} Ng6 {[%emt 0:00:30]} (52... h5 $16 {keeps fighting.} 53. Rc5 gxf4+ 54. gxf4 (54. Kxf4 Rb6 $14) 54... h4) 53. Ra7 {[%emt 0:00:23]} Rb6 $2 {[%emt 0:00:17]} (53... h5 54. Rh7 h4) 54. d6 {[%emt 0:00:16][%csl Gc4][%cal Ra7f7,Bd5d6,Bd6d7][%mdl 32]} gxf4+ {[%emt 0:00:10]} 55. gxf4 {[%emt 0:00:01][%csl Gc4][%cal Ra7f7]} Nh4 {[%emt 0:00:06]} 56. Rf7+ {[%emt 0:00:18]} Kg6 {[%emt 0:00:01]} 57. d7 {[%emt 0:00:04] White is clearly winning.} ({Not} 57. g3 Ng2+ 58. Kf2 Rb2+ 59. Kf3 Ne1+ 60. Ke3 Rb6 $18) 57... Rd6 {[%emt 0:00:27]} 58. g3 {[%emt 0:00:15]} Ng2+ {[%emt 0:00:05]} 59. Ke2 {[%emt 0:00:02]} h5 {[%emt 0:00:15]} 60. Re7 {[%emt 0:00:13]} Kf6 {[%emt 0:00:10] [#] Against Re6+} 61. Re6+ $1 {[%emt 0:00:03][%mdl 512]} Rxe6+ {[%emt 0:00:01]} 62. Bxe6 {[%emt 0:00:02]} Ke7 {[%emt 0:00:03]} 63. Kf2 {[%emt 0:00:05] Weighted Error Value: White=0.29 (precise) /Black=0.36} 1-0

[Event "FIDE WTC Prel-A 2022"]
[Site "Jerusalem"]
[Date "2022.11.20"]
[Round "1.8"]
[White "Kovalenko, Igor"]
[Black "Gharamian, Tigran"]
[Result "1-0"]
[ECO "D37"]
[WhiteElo "2674"]
[BlackElo "2601"]
[Annotator "TA"]
[PlyCount "99"]
[EventDate "2022.11.20"]
[EventType "team-tourn"]
[EventCountry "ISR"]
[SourceTitle "playchess.com"]
[Source "ChessBase"]
[SourceQuality "1"]
[WhiteTeam "Ukraine"]
[BlackTeam "France"]
[WhiteTeamCountry "UKR"]
[BlackTeamCountry "FRA"]
[TimeControl "2700+10"]

{[%evp 9,99,19,14,28,19,22,29,22,28,0,19,43,36,22,30,29,29,0,8,12,20,12,14,0,0,0,0,0,0,0,0,-11,40,49,39,38,49,41,44,44,44,39,43,33,49,36,56,60,83,78,81,35,101,25,20,10,12,7,19,7,22,13,31,20,30,18,98,25,42,33,156,165,247,247,239,239,232,171,171,171,171,171,447,410,5716,4907,2847,2279,5302,5704,29984,29985]} 1. c4 {[%emt 0:00:03]} e6 {[%emt 0:00:10]} 2. Nc3 {[%emt 0:00:02]} d5 {[%emt 0:00:09]} 3. d4 {[%emt 0:00:03]} a6 {[%emt 0:00:44]} 4. cxd5 {[%emt 0:00:34]} exd5 {[%emt 0:00:03]} 5. Nf3 {[%emt 0:00:03]} Nf6 {[%emt 0:00:29]} 6. Bg5 {[%emt 0:00:13] D37: Queen's Gambit Declined: 5 Bf4.} Be6 {[%emt 0:00:16]} 7. e3 {[%emt 0:00:11]} Nbd7 {[%emt 0:00:08]} 8. Bd3 {[%emt 0:00:48] White has an edge.} h6 {[%emt 0:01:32]} 9. Bh4 {[%emt 0:00:03]} g5 {[%emt 0:01:50]} 10. Bg3 {[%emt 0:00:02]} Nh5 {[%emt 0:00:03]} 11. Qc2 {[%emt 0:07:28]} Nxg3 {[%emt 0:03:03]} 12. hxg3 {[%emt 0:00:01][%cal Bh2g3,Bg3g4,Bg4f5][%mdl 32]} Bg7 {[%emt 0:00:39]} 13. Bf5 {[%emt 0:06:56] [#] Hoping for Bxe6.} Bxf5 {[%emt 0:08:11]} 14. Qxf5 {[%emt 0:00:02]} c6 {[%emt 0:00:02] [#]} 15. g4 $146 {[%emt 0:04:18]} ({Predecessor:} 15. O-O-O Qe7 16. e4 Qe6 17. g4 Nf6 18. exd5 Qxf5 19. gxf5 cxd5 20. Rde1+ Kf8 21. Ne5 {0-1 (51) Dreev,A (2652)-Fedoseev,V (2667) Moscow 2016}) 15... Qf6 {[%emt 0:12:53]} 16. Ke2 {[%emt 0:00:31]} Qxf5 {[%emt 0:02:22]} 17. gxf5 {[%emt 0:00:01]} g4 {[%emt 0:00:03]} 18. Ne1 {[%emt 0:00:22][%cal Bf3e1,Be1d3,Bd3f4,Bf4h5][%mdl 32]} h5 {[%emt 0:00:15]} 19. Nd3 {[%emt 0:00:07]} Ke7 {[%emt 0:01:15]} 20. Nf4 {[%emt 0:03:05]} Kf6 {[%emt 0:09:19]} (20... h4 $11) 21. Nxh5+ {[%emt 0:00:28]} Kxf5 {[%emt 0:00:09]} 22. f3 {[%emt 0:00:17]} gxf3+ {[%emt 0:00:43]} 23. gxf3 {[%emt 0:00:02] aiming for e4+.} Bh6 {[%emt 0:01:30]} 24. Rh3 {[%emt 0:01:32] And now Rah1 would win.} Ke6 {[%emt 0:00:45]} 25. Rah1 {[%emt 0:00:09]} Rhg8 {[%emt 0:00:03]} 26. Ng3 {[%emt 0:00:36] Pair of Knights!} Bg5 {[%emt 0:00:05]} 27. e4 {[%emt 0:02:27]} dxe4 {[%emt 0:00:02]} 28. fxe4 {[%emt 0:00:11]} Rg6 {[%emt 0:01:27]} 29. Nf5 {[%emt 0:00:57]} Rag8 {[%emt 0:00:09]} 30. Kd3 {[%emt 0:00:25]} (30. Rf1 $16) 30... Bd8 {[%emt 0:01:03]} (30... c5 $14) 31. Rh8 {[%emt 0:00:54]} (31. Rf3 $16) 31... Nf6 $11 {[%emt 0:00:30] Prevents d5+.} 32. Rxg8 {[%emt 0:00:57]} (32. Ne2 {looks sharper.} Bc7 33. R8h4 Rg4 34. Ne3) 32... Rxg8 {[%emt 0:00:01]} 33. Rf1 {[%emt 0:02:21]} Rg5 {[%emt 0:00:25]} 34. Rf3 {[%emt 0:01:47]} Bc7 {[%emt 0:00:15]} (34... Rg1 {with more complications.} 35. e5 Nd5 36. Nd6 b5) 35. Na4 {[%emt 0:00:48][%cal Ra4c5]} Nd7 {[%emt 0:00:08]} 36. b4 {[%emt 0:00:24]} b6 {[%emt 0:00:14]} 37. Nc3 {[%emt 0:00:10]} b5 {[%emt 0:00:25]} (37... Nf6 $11 {keeps the balance.}) 38. Ne2 {[%emt 0:01:44]} (38. d5+ $16 Kf6 39. Nd4+ Kg6 40. Nxc6) 38... Nf8 {[%emt 0:00:00]} 39. Nh6 {[%emt 0:00:30] Threatens to win with d5+.} Rg7 {[%emt 0:00:01]} (39... f6 $14) 40. e5 $16 {[%emt 0:00:28] Black must now prevent Nf4+. White is more active.} Bd8 {[%emt 0:00:16]} (40... Kd7 $142 41. Rxf7+ Rxf7 42. Nxf7 Ke6) 41. Nf4+ $18 {[%emt 0:00:14]} Kd7 {[%emt 0:00:01]} 42. Nh5 {[%emt 0:00:28][%csl LRf7,LRg7]} Rh7 {[%emt 0:00:06] [#]} 43. Nxf7 {[%emt 0:03:43]} Rxh5 {[%emt 0:00:23]} 44. Nxd8 {[%emt 0:00:02][%mdl 64] Discovered Attack} Kxd8 {[%emt 0:00:11]} 45. Rxf8+ {[%emt 0:00:02] KR-KR} Kc7 $2 {[%emt 0:00:09]} (45... Ke7 {keeps fighting.} 46. Ra8 Rh3+ 47. Ke4 Rh4+ 48. Ke3 Ke6) 46. Rf7+ {[%emt 0:00:08]} Kb6 {[%emt 0:00:05]} (46... Kd8 $142 47. Rg7 Rh3+ 48. Ke4 Rh4+ 49. Ke3 Rh3+ 50. Kf4 Rh4+ 51. Rg4 Rh5) 47. e6 {[%emt 0:00:20][%cal Be5e6,Be6e7][%mdl 32] Threatening mate with e7.} Rh1 {[%emt 0:00:12]} 48. Ke4 {[%emt 0:00:08]} a5 {[%emt 0:00:14]} 49. a3 {[%emt 0:00:03]} a4 {[%emt 0:00:10]} 50. e7 {[%emt 0:00:07] Weighted Error Value: White=0.13 (very precise) /Black=0.35} 1-0

[Event "FIDE WTC Prel-A 2022"]
[Site "Jerusalem"]
[Date "2022.11.20"]
[Round "1.9"]
[White "Solomon, Kenny"]
[Black "Xu, Xiangyu"]
[Result "0-1"]
[ECO "B67"]
[WhiteElo "2355"]
[BlackElo "2577"]
[Annotator "TA"]
[PlyCount "68"]
[EventDate "2022.11.20"]
[EventType "team-tourn"]
[EventCountry "ISR"]
[SourceTitle "playchess.com"]
[Source "ChessBase"]
[SourceQuality "1"]
[WhiteTeam "South Africa"]
[BlackTeam "China"]
[WhiteTeamCountry "RSA"]
[BlackTeamCountry "CHN"]
[TimeControl "2700+10"]

{[%evp 20,68,20,23,41,18,18,0,0,0,24,33,3,29,10,0,0,-17,31,25,43,0,77,-9,0,0,0,-31,-41,-96,-108,-118,-61,-61,-48,-300,-195,-205,-202,-202,-198,-408,-400,-1020,-1013,-5389,-5389,-5385,-5273,-1824,-1603]} 1. e4 {[%emt 0:00:03]} c5 {[%emt 0:00:11]} 2. Nf3 {[%emt 0:00:03]} d6 {[%emt 0:00:10]} 3. d4 {[%emt 0:00:04]} cxd4 {[%emt 0:00:03]} 4. Nxd4 {[%emt 0:00:03]} Nf6 {[%emt 0:00:03]} 5. Nc3 {[%emt 0:00:02]} Nc6 {[%emt 0:00:03]} 6. Bg5 {[%emt 0:00:02]} e6 {[%emt 0:00:02]} 7. Qd2 {[%emt 0:00:02]} a6 {[%emt 0:00:04]} 8. O-O-O {[%emt 0:00:03]} Bd7 {[%emt 0:00:04]} 9. Kb1 {[%emt 0:00:02]} Be7 {[%emt 0:00:25]} 10. f3 {[%emt 0:03:01]} Qc7 {[%emt 0:00:30] 10...Nxd4 is more fashionable.} 11. h4 {[%emt 0:00:13]} h6 {[%emt 0:00:09] B67: Sicilian: Richter-Rauzer: 7...a6 8 0-0-0 Bd7, lines without 9 f4 Be7.} 12. Be3 {[%emt 0:00:02]} h5 {[%emt 0:00:05] Against g4} 13. Bg5 {[%emt 0:01:30]} Ne5 {[%emt 0:02:34] The position is equal.} 14. Qe1 {[%emt 0:00:34] [#]} Rc8 $146 {[%emt 0:01:36]} ({Predecessor:} 14... b5 15. f4 Neg4 16. a3 Rc8 17. f5 e5 18. Nb3 d5 19. exd5 Bxf5 20. Bd3 Bxd3 21. Rxd3 {½-½ (35) Tissir,M (2366)-Hillarp Persson,T (2549) Tromsoe 2014}) 15. Be2 {[%emt 0:09:21]} b5 {[%emt 0:08:43]} 16. a3 {[%emt 0:00:04]} Qb6 {[%emt 0:02:30]} 17. Be3 {[%emt 0:06:58][%cal Od4f5]} (17. f4 {looks sharper.} Nc4 18. Rh3 b4 19. axb4 Qxb4 20. Nb3) 17... Qb8 {[%emt 0:05:40]} 18. Rh3 {[%emt 0:06:12]} d5 {[%emt 0:06:50]} (18... Nc4 $11 {deserves consideration.} 19. Bxc4 Rxc4) 19. exd5 $14 {[%emt 0:02:17]} exd5 {[%emt 0:00:02]} 20. Rg3 {[%emt 0:03:02]} O-O {[%emt 0:01:24] [#]} (20... b4 $1 $11 21. axb4 Bxb4) 21. Rg5 {[%emt 0:09:16]} (21. Bf4 $1 $16 Bd6 22. Rg5) 21... b4 $1 $11 {[%emt 0:04:45]} 22. axb4 {[%emt 0:00:01]} Bxb4 {[%emt 0:00:12]} 23. Bd2 {[%emt 0:00:02][%cal Oe1g3] And now Qg3! would win.} Rfe8 {[%emt 0:02:45] Strongly threatening ...Nc4.} 24. Na2 {[%emt 0:03:12]} ({White should try} 24. Ne4 $1 $15 dxe4 25. Bxb4) 24... Bd6 $17 {[%emt 0:03:49]} (24... Ba3 $6 25. Bb4 Nc4 26. bxa3 $11) 25. Qf1 {[%emt 0:02:33] [#]} Nc4 {[%emt 0:01:22]} (25... Ba3 $1 $17 {[%csl Ga3][%cal Rb8b2]} 26. Nb3 Nh7 27. Rxh5 (27. bxa3 $2 Nxg5 28. Nb4 Nc4 $17) 27... g6 28. Rxe5 (28. Bxa6 gxh5 29. Bxc8 Rxc8 $15) (28. Rxh7 $2 Rxc2 29. Kxc2 Bf5+ 30. Bd3 Bxd3+ 31. Qxd3 Nxd3 $19) 28... Qxe5 29. bxa3 Qxe2 30. Qxe2 Rxe2) 26. Bxc4 $15 {[%emt 0:00:01]} Rxc4 $40 {[%emt 0:00:02][%mdl 128] Black has some attack.} ({Much weaker is} 26... dxc4 27. Ne2 $11) 27. Rxd5 {[%emt 0:00:16][%mdl 8192] This costs White the game.} Ra4 {[%emt 0:00:11]} ({Less strong is} 27... Nxd5 28. Qxc4 Qb7 29. Nc3 $14) 28. Rxd6 {[%emt 0:00:34]} Qxd6 {[%emt 0:00:02]} 29. Bc3 {[%emt 0:00:08]} Nd5 {[%emt 0:00:09][%cal Bf6d5,Bd5b4,Bb4c2][%mdl 32]} ({Stronger than} 29... Qd5 30. b3 Rb8 31. Ka1 $11) 30. Nb3 $2 {[%emt 0:00:09]} (30. Qd3) 30... Bf5 $19 {[%emt 0:00:18][%cal Of5c2] ...Bxc2+! is the strong threat.} 31. Bd4 {[%emt 0:00:18] [#]} (31. Qf2 $142) 31... Rxa2 $1 {[%emt 0:01:25][%mdl 512] Black is clearly winning.} 32. Kxa2 {[%emt 0:00:01]} (32. Qc4 Nb4) 32... Nb4+ {[%emt 0:00:02]} 33. Ka1 {[%emt 0:00:08]} Qc6 {[%emt 0:00:56]} 34. Nc5 {[%emt 0:00:02]} Nxc2+ {[%emt 0:00:02] Weighted Error Value: White=0.87/Black=0.23 (precise)} 0-1